Workbook

Sheet Cover
B3: Excel + VBA
B4: für Controller
B7: Kapitel | C7: 10
B8: Thema | C8: Strategisches Projekt-Controlling
B10: Inhalt | C10: Kosten-Planung
B18: Version | C18: 1.0
B19: Autor | C19: Harald Nahrstedt
B20: Datum | C20: 2025-04-27
B23: Springer Verlag

Sheet Team
A1: Nr | B1: Name | C1: Vorname | D1: Satz
A2: 1 | B2: Weidenfeller | C2: Andrea | D2: 84
A3: 2 | B3: Hornschuh | C3: Thomas | D3: 56
A4: 3 | B4: Subotic | C4: Marian | D4: 45
A5: 4 | B5: Hummels | C5: Marc | D5: 62
A6: 5 | B6: Kirch | C6: Leo | D6: 49
A7: 6 | B7: Schmelzer | C7: Otto | D7: 58
A8: 7 | B8: Koray | C8: Maria | D8: 72
A9: 8 | B9: Kehl | C9: Franz | D9: 46
A10: 9 | B10: Bender | C10: Rene | D10: 64
A11: 10 | B11: Leitner | C11: Zoe | D11: 82
A12: 11 | B12: Sahin | C12: Hans | D12: 76
A13: 12 | B13: Reus | C13: Peter | D13: 66
A14: 13 | B14: Schieber | C14: Wolfgang | D14: 87
A15: 14 | B15: Beck | C15: Anna | D15: 66
A16: 15 | B16: Setzmann | C16: Sonja | D16: 92
A17: 16 | B17: Kunt | C17: Marco | D17: 84
A18: 17 | B18: Kühn | C18: Gitte | D18: 86
A19: 18 | B19: Knop | C19: Julian | D19: 76
A20: 19 | B20: Schuster | C20: Betina | D20: 75
A21: 20 | B21: Engels | C21: Robert | D21: 79

Sheet Produktion
A1: Nr | B1: Bezeichnung | C1: Satz
A2: 1 | B2: Maschinen Bereich A1 | C2: 23.5
A3: 2 | B3: Maschinen Bereich A2 | C3: 28.4
A4: 3 | B4: Maschinen Bereich A3 | C4: 26.9
A5: 4 | B5: Maschinen Bereich A4 | C5: 32.8
A6: 5 | B6: Maschinen Bereich A5 | C6: 34.3
A7: 6 | B7: Maschinen Bereich A6 | C7: 41.7
A8: 7 | B8: Maschinen Bereich B1 | C8: 60.2
A9: 8 | B9: Maschinen Bereich B2 | C9: 58.8
A10: 9 | B10: Maschinen Bereich B3 | C10: 56.7
A11: 10 | B11: Maschinen Bereich B4 | C11: 63.2
A12: 11 | B12: Maschinen Bereich C1 | C12: 80.5
A13: 12 | B13: Maschinen Bereich C2 | C13: 83.5
A14: 13 | B14: Maschinen Bereich C3 | C14: 86.8
A15: 14 | B15: Maschinen Bereich C4 | C15: 87.1
A16: 15 | B16: Maschinen Bereich C5 | C16: 88.8
A17: 16 | B17: Maschinen Bereich C6 | C17: 89.5
A18: 17 | B18: Maschinen Bereich D1 | C18: 41.1
A19: 18 | B19: Maschinen Bereich D2 | C19: 45.8
A20: 19 | B20: Maschinen Bereich D3 | C20: 44.9
A21: 20 | B21: Maschinen Bereich D4 | C21: 41.4

Sheet Sonstiges
A1: Nr | B1: Bezeichnung | C1: Satz
A2: 1 | B2: Sonstiges 1 | C2: 76.82
A3: 2 | B3: Sonstiges 2 | C3: 38.41
A4: 3 | B4: Sonstiges 3 | C4: 20.27
A5: 4 | B5: Sonstiges 4 | C5: 33.1
A6: 5 | B6: Sonstiges 5 | C6: 41.69
A7: 6 | B7: Sonstiges 6 | C7: 25.61
A8: 7 | B8: Sonstiges 7 | C8: 59.37
A9: 8 | B9: Sonstiges 8 | C9: 20.26
A10: 9 | B10: Sonstiges 9 | C10: 79.82
A11: 10 | B11: Sonstiges 10 | C11: 22.49

Sheet Kostenplan
A2: Projekt | B2: XYZ
A3: Leiter | B3: Mustermann
C5: PERSONALKOSTEN | I5: Personalkosten Gesamt | J5: PRODUKTIONSKOSTEN | P5: Produktionskosten Gesamt | Q5: SONSTIGE KOSTEN | W5: Sonstige Kosten Gesamt | X5: Gesamtkosten
A6: Code | B6: Teilaufgaben Arbeitspakete Resourcen | C6: =IF(C7>0,CONCATENATE(VLOOKUP(C7,Team,3)," ",VLOOKUP(C7,Team,2)," ")) -> Sonja Setzmann | D6: =IF(D7>0,CONCATENATE(VLOOKUP(D7,Team,3)," ",VLOOKUP(D7,Team,2)," ")) -> Thomas Hornschuh | E6: Marian Subotic | F6: Marc Hummels | G6: Leo Kirch | H6: Otto Schmelzer | J6: =IF(J7>0,VLOOKUP(J7,Produktion,2)," ") -> Maschinen Bereich A1 | K6: Maschinen Bereich A3 | L6: Maschinen Bereich C5 | M6: Maschinen Bereich B3 | N6: Maschinen Bereich A5 | Q6: =IF(Q7>0,VLOOKUP(Q7,Sonstiges,2)," ") -> Sonstiges 3 | R6: Sonstiges 4 | S6: Sonstiges 2 | T6: Sonstiges 7
C7: 15 | D7: 2 | E7: 3 | F7: 4 | G7: 5 | H7: 6 | J7: 1 | K7: 3 | L7: 15 | M7: 9 | N7: 5 | Q7: 3 | R7: 4 | S7: 2 | T7: 7
C8: =IF(C7="","",VLOOKUP(C7,Team,4)) -> 92 | D8: 56 | E8: 45 | F8: 62 | G8: 49 | H8: 58 | J8: =IF(J7="","",VLOOKUP(J7,Produktion,3)) -> 23.5 | K8: 26.9 | L8: 88.8 | M8: 56.7 | N8: 34.3 | Q8: =IF(Q7="","",VLOOKUP(Q7,Sonstiges,3)) -> 20.27 | R8: 33.1 | S8: 38.41 | T8: 59.37
A9: 1 | B9: Projektmanagement | X9: =I9+P9+W9 -> 0
A10: 1.1 | B10: Planung | C10: 40 | D10: 8 | E10: 8 | F10: 8 | G10: 8 | H10: 8 | I10: =SUMPRODUCT(C10:H10,C$8:H$8) -> 5840 | J10: 2 | K10: 2 | L10: 2 | M10: 1 | N10: 1 | P10: =SUMPRODUCT(J10:O10,J$8:O$8) -> 369.4 | Q10: 4 | R10: 5 | S10: 9 | T10: 16 | W10: =SUMPRODUCT(Q10:V10,Q$8:V$8) -> 1542.19 | X10: 7751.59
A11: 1.2 | B11: Controlling | C11: 60 | D11: 2 | E11: 2 | F11: 2 | G11: 2 | H11: 2 | I11: =SUMPRODUCT(C11:H11,C$8:H$8) -> 6060 | J11: 4 | K11: 1 | L11: 1 | M11: 1 | N11: 1 | P11: =SUMPRODUCT(J11:O11,J$8:O$8) -> 300.7 | Q11: 3 | R11: 6 | S11: 18 | T11: 3 | W11: =SUMPRODUCT(Q11:V11,Q$8:V$8) -> 1128.9 | X11: 7489.6
A12: 1.3 | B12: Koordination | C12: 4 | D12: 1 | E12: 1 | F12: 1 | G12: 1 | I12: 580 | J12: 3 | K12: 2 | L12: 2 | M12: 2 | N12: 2 | P12: 483.9 | Q12: 12 | R12: 17 | S12: 16 | T12: 6 | W12: 1776.72 | X12: 2840.62
A13: 1.4 | B13: Marketing | C13: 5 | D13: 1 | E13: 1 | F13: 1 | G13: 1 | I13: 672 | J13: 4 | K13: 2 | L13: 2 | M13: 2 | N13: 2 | P13: 507.4 | Q13: 2 | R13: 15 | S13: 11 | T13: 19 | W13: 2087.58 | X13: 3266.98
A14: 1.5 | B14: Dokumentation | C14: 4 | H14: 2 | I14: 484 | J14: 1 | K14: 1 | L14: 1 | M14: 1 | N14: 1 | P14: 230.2 | Q14: 7 | R14: 12 | S14: 8 | T14: 6 | W14: 1202.59 | X14: 1916.79
A15: 1.6 | B15: Abschluss | C15: 6 | D15: 2 | E15: 2 | F15: 2 | G15: 2 | H15: 2 | I15: 1092 | J15: 1 | K15: 1 | L15: 1 | M15: 1 | N15: 1 | P15: 230.2 | Q15: 7 | R15: 13 | S15: 10 | T15: 6 | W15: 1312.51 | X15: 2634.71
B16: Teilsumme | C16: =SUM(C10:C15) -> 119 | D16: =SUM(D10:D15) -> 14 | E16: 14 | F16: 14 | G16: 14 | H16: 14 | I16: 14728 | J16: =SUM(J10:J15) -> 15 | K16: =SUM(K10:K15) -> 9 | L16: 9 | M16: 8 | N16: 8 | O16: 0 | P16: 2121.8 | Q16: =SUM(Q10:Q15) -> 35 | R16: =SUM(R10:R15) -> 68 | S16: 72 | T16: 56 | U16: =SUM(U10:U15) -> 0 | V16: =SUM(V10:V15) -> 0 | W16: 9050.49 | X16: 25900.29
A17: 2 | B17: Ist-Analyse | I17: 0 | W17: 0 | X17: 0
A18: 2.1 | B18: (Arbeitspaket) | C18: 15 | D18: 50 | E18: 12 | F18: 57 | G18: 3 | H18: 38 | I18: 10605 | J18: 42 | K18: 59 | L18: 71 | M18: 18 | N18: 85 | P18: =SUMPRODUCT(J18:O18,J$8:O$8) -> 12815 | Q18: 17 | R18: 20 | S18: 1 | T18: 0 | W18: 1045 | X18: =I18+P18+W18 -> 24465
A19: 2.2 | C19: 7 | D19: 28 | E19: 3 | F19: 26 | G19: 14 | H19: 54 | I19: 7777 | J19: 89 | K19: 95 | L19: 55 | M19: 28 | N19: 98 | P19: =SUMPRODUCT(J19:O19,J$8:O$8) -> 14480 | Q19: 3 | R19: 11 | S19: 19 | T19: 14 | W19: 1985.88 | X19: =I19+P19+W19 -> 24242.88
A20: 2.3 | C20: 27 | D20: 18 | E20: 52 | F20: 60 | G20: 35 | H20: 45 | I20: 13877 | J20: 58 | K20: 27 | L20: 45 | M20: 68 | N20: 40 | P20: 11312.9 | Q20: 10 | R20: 10 | S20: 8 | T20: 8 | W20: 1315.94 | X20: 26505.84
A21: 2.4 | C21: 24 | D21: 38 | E21: 14 | F21: 38 | G21: 48 | H21: 7 | I21: 10080 | J21: 96 | K21: 19 | L21: 14 | M21: 85 | N21: 27 | P21: 9755.9 | Q21: 13 | R21: 6 | S21: 3 | T21: 19 | W21: 1705.37 | X21: 21541.27
A22: 2.5 | C22: 60 | D22: 18 | E22: 25 | F22: 50 | G22: 19 | H22: 14 | I22: 12496 | J22: 21 | K22: 51 | L22: 95 | M22: 80 | N22: 77 | P22: 17478.5 | Q22: 10 | R22: 17 | S22: 7 | T22: 15 | W22: 1924.82 | X22: 31899.32
B23: Teilsumme | C23: =SUM(C18:C22) -> 133 | D23: =SUM(D18:D22) -> 152 | E23: 106 | F23: 231 | G23: 119 | H23: 158 | I23: 54835 | J23: =SUM(J18:J22) -> 306 | K23: =SUM(K18:K22) -> 251 | L23: 280 | M23: 279 | N23: 327 | O23: 0 | P23: 65842.3 | Q23: =SUM(Q18:Q22) -> 53 | R23: =SUM(R18:R22) -> 64 | S23: 38 | T23: 56 | U23: =SUM(U18:U22) -> 0 | V23: =SUM(V18:V22) -> 0 | W23: 7977.01 | X23: 128654.31
A24: 3 | B24: Teilaufgabe | I24: 0 | W24: 0 | X24: 0
A25: 3.1 | C25: 17 | D25: 38 | E25: 32 | F25: 8 | G25: 10 | H25: 12 | I25: =SUMPRODUCT(C25:H25,C$8:H$8) -> 6814 | J25: 66 | K25: 62 | L25: 34 | M25: 72 | N25: 2 | P25: =SUMPRODUCT(J25:O25,J$8:O$8) -> 10389 | Q25: 13 | R25: 4 | S25: 10 | T25: 11 | W25: 1433.08 | X25: 18636.08
A26: 3.2 | C26: 31 | D26: 3 | E26: 27 | F26: 23 | G26: 15 | H26: 23 | I26: 7730 | J26: 74 | K26: 87 | L26: 25 | M26: 64 | N26: 21 | P26: =SUMPRODUCT(J26:O26,J$8:O$8) -> 10648.4 | Q26: 16 | R26: 9 | S26: 18 | T26: 13 | W26: 2085.41 | X26: 20463.81
A27: 3.3 | C27: 11 | D27: 7 | E27: 35 | F27: 26 | G27: 30 | H27: 19 | I27: 7163 | J27: 81 | K27: 24 | L27: 50 | M27: 60 | N27: 90 | P27: 13478.1 | Q27: 14 | R27: 15 | S27: 3 | T27: 1 | W27: 954.88 | X27: 21595.98
A28: 3.4 | C28: 29 | D28: 28 | E28: 13 | F28: 26 | G28: 20 | H28: 23 | I28: 8747 | J28: 18 | K28: 28 | L28: 42 | M28: 2 | N28: 28 | P28: 5979.6 | Q28: 5 | R28: 4 | S28: 10 | T28: 10 | W28: 1211.55 | X28: 15938.15
A29: 3.5 | C29: 24 | D29: 39 | E29: 29 | F29: 12 | G29: 36 | H29: 39 | I29: 10467 | J29: 55 | K29: 65 | L29: 61 | M29: 69 | N29: 95 | P29: 15628.6 | Q29: 7 | R29: 6 | S29: 12 | T29: 18 | W29: 1870.07 | X29: 27965.67
A30: 3.6 | C30: 10 | D30: 39 | E30: 7 | F30: 26 | G30: 4 | H30: 6 | I30: 5575 | J30: 47 | K30: 43 | L30: 69 | M30: 93 | N30: 72 | P30: 16131.1 | Q30: 16 | R30: 2 | S30: 2 | T30: 1 | W30: 526.71 | X30: 22232.81
B31: Teilsumme | C31: =SUM(C25:C30) -> 122 | D31: =SUM(D25:D30) -> 154 | E31: 143 | F31: 121 | G31: 115 | H31: 122 | I31: 46496 | J31: =SUM(J25:J30) -> 341 | K31: =SUM(K25:K30) -> 309 | L31: 281 | M31: 360 | N31: 308 | O31: =SUM(O25:O30) -> 0 | P31: 72254.8 | Q31: =SUM(Q25:Q30) -> 71 | R31: =SUM(R25:R30) -> 40 | S31: 55 | T31: 54 | U31: =SUM(U25:U30) -> 0 | V31: =SUM(V25:V30) -> 0 | W31: 8081.7 | X31: 126832.5
A32: 4 | B32: Teilaufgabe | I32: 0 | W32: 0 | X32: 0
A33: 4.1 | C33: 3 | D33: 12 | E33: 28 | F33: 29 | G33: 34 | H33: 26 | I33: 7180 | J33: 57 | K33: 68 | L33: 71 | M33: 24 | N33: 79 | P33: =SUMPRODUCT(J33:O33,J$8:O$8) -> 13544 | Q33: 10 | R33: 16 | S33: 10 | T33: 12 | W33: 1828.84 | X33: 22552.84
A34: 4.2 | C34: 25 | D34: 0 | E34: 33 | F34: 13 | G34: 21 | H34: 27 | I34: 7186 | J34: 8 | K34: 89 | L34: 89 | M34: 40 | N34: 32 | P34: =SUMPRODUCT(J34:O34,J$8:O$8) -> 13850.9 | Q34: 13 | R34: 8 | S34: 7 | T34: 2 | W34: 915.92 | X34: 21952.82
A35: 4.3 | C35: 19 | D35: 27 | E35: 14 | F35: 2 | G35: 32 | H35: 10 | I35: 6162 | J35: 83 | K35: 81 | L35: 4 | M35: 17 | N35: 39 | P35: 6786.2 | Q35: 5 | R35: 2 | S35: 11 | T35: 12 | W35: 1302.5 | X35: 14250.7
A36: 4.4 | C36: 19 | D36: 22 | E36: 39 | F36: 2 | G36: 1 | H36: 18 | I36: 5952 | J36: 55 | K36: 77 | L36: 71 | M36: 48 | N36: 64 | P36: 14585.4 | Q36: 10 | R36: 17 | S36: 3 | T36: 14 | W36: 1711.81 | X36: 22249.21
A37: 4.5 | I37: 0 | J37: 23 | K37: 22 | L37: 30 | M37: 6 | N37: 98 | P37: 7497.9 | Q37: 8 | R37: 11 | S37: 4 | T37: 17 | W37: 1689.19 | X37: 9187.09
A38: 4.6 | C38: 39 | D38: 13 | E38: 2 | F38: 11 | G38: 20 | H38: 10 | I38: 6648 | J38: 72 | K38: 82 | L38: 58 | M38: 40 | N38: 34 | P38: 12482.4 | Q38: 7 | R38: 9 | S38: 6 | T38: 10 | W38: 1263.95 | X38: 20394.35
B39: Teilsumme | C39: =SUM(C33:C38) -> 105 | D39: =SUM(D33:D38) -> 74 | E39: 116 | F39: 57 | G39: 108 | H39: 91 | I39: 33128 | J39: =SUM(J33:J38) -> 298 | K39: =SUM(K33:K38) -> 419 | L39: 323 | M39: 175 | N39: 346 | O39: 0 | P39: =SUMPRODUCT(J39:O39,J$8:O$8) -> 68746.8 | Q39: =SUM(Q33:Q38) -> 53 | R39: =SUM(R33:R38) -> 63 | S39: 41 | T39: 67 | U39: =SUM(U33:U38) -> 0 | V39: =SUM(V33:V38) -> 0 | W39: 8712.21 | X39: 110587.01
B40: Gesamtsumme | C40: =SUM(C10:C15,C18:C22,C25:C30,C33:C38) -> 479 | D40: =SUM(D10:D15,D18:D22,D25:D30,D33:D38) -> 394 | E40: 379 | F40: 423 | G40: 356 | H40: 385 | I40: =SUMPRODUCT(C40:H40,C38:H38) -> 40184 | J40: =SUM(J10:J15,J18:J22,J25:J30,J33:J38) -> 960 | K40: =SUM(K10:K15,K18:K22,K25:K30,K33:K38) -> 988 | L40: 893 | M40: 822 | N40: 989 | O40: 0 | P40: 208965.7 | Q40: =SUM(Q10:Q15,Q18:Q22,Q25:Q30,Q33:Q38) -> 212 | R40: =SUM(R10:R15,R18:R22,R25:R30,R33:R38) -> 235 | S40: 206 | T40: 233 | U40: 0 | V40: 0 | W40: 33821.41 | X40: 282971.11
